bitfinex/quotes_SOLUSD_20251231
["timestamp","ask_amount","ask_price","bid_price","bid_amount"]
[1767162786645,0.66,126.04,125.99,0.68]
[1767162786646,11.83504349,126.04,125.99,0.68]
[1767162786831,0.7,126.02,125.99,8.61710266]
[1767162787032,0.7,126.03,126.0,0.68]
[1767162794446,0.7,126.03,125.99,11.83801164]
[1767162794643,0.7,126.03,125.99,12.51801164]
[1767162800654,0.7,126.03,126.0,0.66]
[1767162802851,0.7,126.03,126.0,12.49720425]
[1767162803550,0.7,126.03,126.0,4.56090898]
[1767162804035,0.7,126.03,126.0,0.66]
[1767162805263,0.7,126.03,126.0,8.59647397]
[1767162807047,0.7,126.03,126.0,0.66]
[1767162807453,0.7,126.03,126.0,8.59648731]
[1767162810762,0.7,126.03,125.98,8.59724236]
[1767162810962,0.7,126.03,125.98,23.09724236]
[1767162811644,0.7,126.03,125.99,0.66]
[1767162815057,0.7,126.03,125.99,8.59713118]
[1767162815463,0.7,126.03,125.99,12.49804016]
[1767162815944,0.7,126.03,126.0,0.66]
[1767162821669,0.7,126.03,125.99,8.59706901]
[1767162821974,0.7,126.03,126.0,0.66]
[1767162833283,0.7,126.03,125.99,7.93706901]
[1767162833485,0.7,126.03,125.98,27.01841778]
[1767162833982,0.7,126.03,125.99,0.68]
[1767162834984,0.7,126.03,126.0,7.93650793]
[1767162835187,0.7,126.03,126.0,8.61650793]
[1767162835771,0.7,126.03,126.0,0.68]
[1767162839776,0.7,126.03,126.0,8.61647045]
[1767162840581,0.7,126.03,126.0,0.68]
[1767162864216,0.7,126.03,125.99,23.15710629]
[1767162867403,6.67086701,126.02,125.98,8.65739551]
[1767162867607,0.71,126.02,125.98,8.65739551]
[1767162868008,0.71,126.02,125.99,8.65711543]
[1767162869120,0.71,126.02,125.99,7.93711543]
[1767162869319,0.71,126.02,126.0,0.72]
[1767162870623,0.71,126.04,126.0,8.65632881]
[1767162871021,0.71,126.04,126.01,0.72]
[1767162873625,0.71,126.04,126.0,8.65632881]
[1767162874002,0.71,126.04,126.0,0.72]
[1767162880632,0.71,126.03,126.0,0.72]
[1767162899521,0.67,126.02,125.99,15.2]
[1767162900428,2.49714553,126.01,125.96,0.7]
[1767162900617,2.49714553,126.01,125.98,0.7]
[1767162900815,23.80342623,126.03,125.98,0.7]
[1767162901119,0.67,126.02,125.99,0.67]
[1767162909750,29.13779551,126.05,126.0,3.90237802]
[1767162909936,7.36379221,126.06,126.02,0.67]
[1767162910138,5.95742156,126.05,126.02,0.67]
[1767162910443,0.66,126.05,126.03,0.67]
[1767162912767,8.59340844,126.05,126.02,15.17]
[1767162913059,0.66,126.05,126.02,15.17]
[1767162913235,0.66,126.02,125.97,0.67]
[1767162913437,4.56237802,126.02,125.99,0.67]
[1767162914138,0.66,126.02,125.99,0.67]
[1767162916751,0.66,126.02,125.98,14.5]
[1767162917257,0.66,126.02,125.99,0.67]
[1767162919435,0.68,126.01,125.98,15.17]
[1767162923263,0.68,126.02,125.99,0.67]
[1767162923561,0.68,126.03,126.0,0.67]
[1767162941660,0.68,126.02,125.99,0.67]
[1767162943251,0.68,126.02,125.98,14.5]
[1767162943752,0.68,126.02,125.99,0.67]
[1767162946465,0.68,126.02,125.98,15.17]
[1767162946672,0.68,126.02,125.99,0.67]
[1767162976594,7.93526145,126.02,125.97,14.5]
[1767162976787,0.7,126.01,125.97,14.5]
[1767162976990,0.7,126.01,125.98,0.69]
[1767162978900,0.7,126.0,125.97,15.19]
[1767162980323,10.43332501,126.01,125.97,15.19]
[1767162980324,0.7,126.01,125.98,0.69]
[1767162990911,10.43222661,126.03,125.98,0.69]
[1767162992815,0.7,126.02,125.98,0.69]
[1767162994628,0.7,126.01,125.98,0.69]
[1767163008843,0.69,126.0,125.97,0.71]
[1767163021340,2.49733544,126.0,125.96,15.21]
[1767163021546,0.69,125.99,125.96,15.21]
[1767163021847,2.49733544,125.99,125.96,0.71]
[1767163022054,7.93603674,126.01,125.95,0.71]
[1767163022055,3.18733544,125.98,125.95,0.71]
[1767163022257,0.69,125.96,125.93,23.15084082]
[1767163022555,0.69,125.96,125.93,15.21]
[1767163023460,0.69,125.96,125.94,0.71]
[1767163025735,0.7,125.95,125.93,15.21]
[1767163026235,0.7,125.96,125.93,0.71]
[1767163026441,3.19733544,125.96,125.93,0.71]
[1767163026640,0.7,125.95,125.93,0.71]
[1767163028157,3.19733544,125.96,125.93,0.71]
[1767163028537,4.60622331,125.96,125.93,0.71]
[1767163029264,0.7,125.95,125.93,0.71]
[1767163029654,0.7,125.94,125.91,15.21]
[1767163029855,3.90622331,125.94,125.91,15.21]
[1767163030057,4.60622331,125.94,125.91,15.21]
[1767163030378,0.7,125.94,125.91,15.21]
[1767163034849,15.21,125.96,125.92,0.71]
[1767163035057,15.21,125.96,125.93,0.71]
[1767163035058,0.7,125.96,125.93,0.71]
[1767163035447,0.7,125.95,125.92,0.71]
[1767163036867,0.68,125.97,125.93,0.7]
[1767163041372,4.58622331,125.97,125.93,0.7]
[1767163041557,0.68,125.96,125.93,0.7]
[1767163042948,3.90622331,125.97,125.93,0.7]
[1767163043170,4.58622331,125.97,125.93,0.7]
[1767163043672,3.90622331,125.97,125.93,0.7]
[1767163043872,4.58622331,125.96,125.93,0.7]
[1767163044058,0.68,125.96,125.91,0.7]
[1767163044258,0.68,125.94,125.91,0.7]
[1767163051776,8.61976631,125.95,125.92,0.7]
[1767163052271,12.52598962,125.95,125.92,0.7]
[1767163052454,4.58622331,125.95,125.92,0.7]
[1767163052650,0.68,125.95,125.92,0.7]
[1767163054461,4.58622331,125.95,125.92,0.7]
[1767163055685,0.68,125.95,125.92,0.7]
[1767163067800,0.68,125.95,125.9,11.8490118]
[1767163067999,0.67,125.94,125.91,0.65]
[1767163075201,7.93967231,125.95,125.91,0.65]
[1767163075408,8.60967231,125.95,125.91,0.65]
[1767163075608,0.67,125.93,125.9,0.65]
[1767163075781,4.57622331,125.93,125.9,0.65]
[1767163076399,0.67,125.94,125.91,0.65]
[1767163076597,0.67,125.94,125.91,3.90622331]
[1767163076802,0.67,125.95,125.92,0.65]
[1767163080496,0.67,125.95,125.92,3.90622331]
[1767163080709,0.67,125.95,125.93,0.65]
[1767163099922,0.67,125.95,125.92,0.67]
[1767163101734,0.69,125.92,125.9,0.67]
[1767163102020,0.66059712,125.92,125.9,0.67]
[1767163102525,2.49994701,125.92,125.89,15.17]
[1767163104022,0.69,125.92,125.89,15.17]
[1767163104720,0.69,125.92,125.9,0.67]
[1767163105100,3.18994701,125.94,125.9,0.67]
[1767163105326,0.69,125.93,125.9,0.67]
[1767163114336,3.18994701,125.93,125.9,0.67]
[1767163115453,0.69,125.92,125.9,0.67]
[1767163116229,3.18994701,125.93,125.9,0.67]
[1767163116413,0.69,125.92,125.89,22.44332176]
[1767163116616,0.69,125.92,125.89,23.11332176]
[1767163116839,0.69,125.92,125.9,0.67]
[1767163125435,0.69,125.93,125.9,0.67]
[1767163143358,0.69,125.93,125.91,0.68]
[1767163143853,41.06883756,125.97,125.91,0.68]
[1767163143854,2.49994701,125.96,125.91,0.68]
[1767163144056,0.66,125.95,125.91,0.68]
[1767163144350,6.70210869,125.99,125.92,2.49994701]
[1767163144560,0.66,125.97,125.94,0.68]
[1767163145257,3.15994701,125.97,125.94,0.68]
[1767163145557,0.66,125.96,125.94,0.68]
[1767163153065,4.5656974,125.97,125.94,0.68]
[1767163155560,0.66,125.97,125.94,0.68]
[1767163172002,0.68,125.97,125.92,15.23]
[1767163172190,0.68,125.95,125.92,15.23]
[1767163172506,0.68,125.95,125.93,0.71]
[1767163181511,0.68,125.95,125.92,18.4256974]
[1767163181512,0.68,125.95,125.92,14.52]
[1767163181811,0.68,125.95,125.92,15.23]
[1767163182392,0.68,125.95,125.92,18.4256974]
[1767163182696,0.68,125.95,125.93,0.71]
[1767163186617,0.68,125.95,125.92,19.1356974]
[1767163186813,0.68,125.95,125.92,15.23]
[1767163188018,3.9056974,125.95,125.91,0.71]
[1767163188201,0.68,125.92,125.89,0.71]
[1767163189317,0.68,125.92,125.89,8.65326866]
[1767163189613,3.9056974,125.93,125.9,0.71]
[1767163189815,4.5856974,125.93,125.9,0.71]
[1767163190199,0.68,125.93,125.9,0.71]
[1767163195216,4.5856974,125.95,125.91,0.71]
[1767163195417,0.68,125.94,125.91,0.71]
[1767163199924,0.68,125.94,125.91,15.21]
[1767163203630,3.9056974,125.96,125.91,22.44207982]
[1767163203832,0.69,125.97,125.94,0.7]
[1767163212341,0.69,125.96,125.94,0.7]
[1767163215839,0.69,125.96,125.93,14.5]
[1767163216024,19.84349228,125.99,125.93,14.5]
[1767163216025,3.18960662,125.95,125.93,14.5]
[1767163216220,0.69,125.95,125.93,15.2]
[1767163216420,3.18960662,125.95,125.93,15.21]
[1767163218035,3.18960662,125.95,125.93,14.5]
[1767163218342,0.71,125.94,125.93,14.5]
[1767163218729,3.20960662,125.95,125.93,14.5]
[1767163219318,3.20960662,125.95,125.92,0.71]
[1767163223243,2.49960662,125.94,125.92,0.71]
[1767163223634,3.20960662,125.95,125.92,0.71]
[1767163223944,2.49960662,125.95,125.92,0.71]
[1767163224122,0.71,125.94,125.92,0.71]
[1767163224529,3.20960662,125.93,125.91,14.5]
[1767163225543,2.49960662,125.93,125.91,15.21]
[1767163226032,3.20960662,125.93,125.91,15.21]
[1767163226431,3.20960662,125.94,125.91,15.21]
[1767163231071,2.49960662,125.94,125.91,15.21]
[1767163231369,0.71,125.93,125.91,15.21]
[1767163231662,0.71,125.93,125.91,14.5]
[1767163231838,0.71,125.93,125.9,0.71]
[1767163247583,0.71,125.93,125.9,8.65280956]
[1767163259488,0.71,125.93,125.89,0.67]
[1767163259689,0.71,125.93,125.9,0.67]
[1767163260193,0.71,125.93,125.9,10.44241383]
[1767163260388,0.71,125.93,125.91,0.67]
[1767163267197,0.65,125.95,125.92,0.68]
[1767163273503,0.65,125.95,125.91,0.68]
[1767163283821,8.58969338,125.95,125.91,0.68]
[1767163284028,0.71,125.94,125.91,0.68]
[1767163290029,3.90677154,125.96,125.91,0.68]
[1767163290234,0.71,125.96,125.93,0.71]
[1767163290432,0.71,125.96,125.94,0.71]
[1767163298708,0.71,125.98,125.94,0.71]
[1767163299936,0.71,125.98,125.94,8.65022776]
[1767163300236,0.71,125.98,125.94,0.71]
[1767163320453,4.61677154,125.98,125.94,0.71]
[1767163320655,0.66,125.97,125.94,0.71]
[1767163340776,0.66,125.97,125.94,0.68050602]
[1767163343782,0.66,125.97,125.93,14.5]
[1767163343982,0.7,125.96,125.93,15.17]
[1767163348169,0.7,125.98,125.94,0.67]
[1767163348369,0.7,125.98,125.94,3.16936811]
[1767163349665,0.7,125.98,125.94,0.67]
[1767163356192,0.67,125.96,125.93,23.14091399]
[1767163356498,0.67,125.96,125.93,4.39e-06]
[1767163357681,0.67,125.96,125.93,7.94091838]
[1767163366794,0.67,125.96,125.94,0.68]
[1767163367698,0.67,125.96,125.93,11.1202821]
[1767163369901,0.67,125.96,125.93,8.62091399]
[1767163372899,0.67,125.96,125.92,8.62137758]
[1767163376297,0.67,125.96,125.92,11.12074569]
[1767163378119,0.67,125.96,125.92,8.62137758]
[1767163378311,0.67,125.96,125.92,11.12074569]
[1767163383610,0.67,125.96,125.94,0.71]
[1767163383807,32.8746629,125.99,125.95,0.71]
[1767163383808,0.72,125.98,125.95,0.71]
[1767163384007,0.72,125.98,125.94,3.20936811]
[1767163385414,0.72,125.98,125.95,0.71]
[1767163387916,0.72,125.99,125.96,0.71]
[1767163388310,0.72,125.99,125.95,11.14882602]
[1767163389717,0.72,125.99,125.95,8.64945791]
[1767163390097,0.72,125.99,125.95,11.14882602]
[1767163390411,0.72,125.99,125.95,8.64945791]
[1767163391318,0.72,125.98,125.95,8.64945791]
[1767163399525,0.72,125.98,125.94,7.94028902]
[1767163399727,0.72,125.98,125.94,8.60028902]
[1767163403132,0.72,125.98,125.95,0.66]
[1767163408827,0.66,125.97,125.94,8.60028902]
[1767163409338,0.66,125.98,125.94,8.60028902]
[1767163409638,0.66,125.98,125.95,0.66]
[1767163416545,0.66,125.99,125.96,0.66]
[1767163418041,0.66,125.99,125.96,8.59858219]
[1767163418243,0.66,125.99,125.97,0.66]
[1767163418442,0.66,126.02,125.98,0.66]
[1767163419424,0.66,126.02,125.99,0.66]
[1767163420855,0.66,126.02,125.99,4.56458946]
[1767163422345,0.66,126.02,125.99,3.90458946]
[1767163422660,0.66,126.02,126.0,0.66]
[1767163423659,0.66,126.03,126.0,4.56458946]
[1767163429453,0.66,126.03,126.0,0.66]
[1767163431940,0.66,126.03,126.0,11.84096436]
[1767163432147,4.60458946,126.02,125.98,27.02234433]
[1767163432456,0.7,126.01,125.98,27.02234433]
[1767163432650,3.90458946,126.02,125.99,0.68]
[1767163432856,4.60458946,126.02,125.99,0.68]
[1767163435162,4.60458946,126.02,125.99,8.61710348]
[1767163437660,4.56458946,126.02,125.99,8.61710348]
[1767163437862,4.56458946,126.02,125.99,0.68]
[1767163438356,0.66,126.01,125.98,23.10750762]
[1767163438762,0.66,126.01,125.99,0.67]
[1767163439259,3.90458946,126.02,125.97,0.67]
[1767163439260,4.56458946,126.0,125.97,0.67]
[1767163440050,0.66,125.99,125.97,0.67]
[1767163444366,0.7,126.01,125.97,4.57458946]
[1767163444676,0.7,126.0,125.97,12.51297173]
[1767163448868,0.7,126.02,125.99,0.67]
[1767163449677,0.7,126.02,125.98,12.51175386]
[1767163451354,0.7,126.02,125.99,3.90458946]
[1767163452472,0.7,126.02,125.98,8.6071644]
[1767163452670,0.7,126.02,125.98,12.51175386]
[1767163458483,0.7,126.02,125.98,11.10457665]
[1767163460074,2.49741225,126.03,125.97,11.12574962]
[1767163460075,0.67,126.0,125.97,11.12574962]
[1767163461074,0.67,126.0,125.97,8.62833737]
[1767163466787,2.49741225,126.0,125.96,0.69]
[1767163467087,0.67,126.0,125.96,3.18741225]
[1767163468091,0.67,126.0,125.96,11.12599602]
[1767163468267,0.67,126.0,125.96,8.62858377]
[1767163468586,0.67,126.0,125.96,11.12599602]
[1767163471190,0.67,126.0,125.97,0.7]
[1767163475495,0.67,126.0,125.97,3.19741225]
[1767163480200,0.67,126.0,125.97,11.13571897]
[1767163480400,0.71,126.03,126.0,0.7]
[1767163480894,0.71,126.03,125.99,3.19741225]
[1767163482195,0.71,126.03,126.0,2.49741225]
[1767163485712,3.20741225,126.03,125.99,3.19741225]
[1767163485999,0.71,126.02,125.99,3.19741225]
[1767163486799,0.71,126.02,125.99,0.7]
[1767163487013,0.71,126.02,125.99,3.19741225]
[1767163487302,2.49741225,126.05,126.01,2.49741225]
[1767163487606,0.68,126.03,126.0,3.18741225]
[1767163489399,0.68,126.03,126.0,11.12370319]
[1767163493900,0.68,126.03,126.0,8.62629094]
[1767163495396,0.68,126.03,126.0,11.12370319]
[1767163495709,0.68,126.03,126.0,3.18741225]
[1767163499810,0.68,126.03,126.0,0.69]
[1767163500012,0.68,126.03,126.0,3.18741225]
[1767163501508,2.49741225,126.03,125.98,7.93767113]
[1767163501704,0.66,126.02,125.98,7.93767113]
[1767163501907,0.66,126.02,125.98,11.13508338]
[1767163504712,0.66,126.02,125.99,2.49741225]
[1767163505917,0.66,126.02,125.98,11.13508338]
[1767163506115,0.66,126.02,125.98,8.63767113]
[1767163506416,0.66,126.02,125.98,11.13508338]
[1767163507413,0.66,126.02,125.99,2.49741225]
[1767163508402,0.66,126.02,125.99,3.19741225]
[1767163508903,0.66,126.01,125.98,3.19741225]
[1767163509410,0.66,126.01,125.99,0.7]
[1767163510418,0.66,126.01,125.98,3.19741225]
[1767163511823,0.66,126.01,125.98,11.13508392]
[1767163518528,0.66,126.01,125.98,12.54006854]
[1767163523029,0.66,126.01,125.98,8.63767167]
[1767163523325,0.66,126.01,125.98,12.54006854]
[1767163523720,0.66,126.01,125.98,0.7]
[1767163523921,0.66,126.01,125.98,4.60239687]
[1767163532857,0.66,126.01,125.98,12.5401081]
[1767163533557,0.66,126.01,125.98,8.63771123]
[1767163533863,0.66,126.01,125.98,12.5401081]
[1767163534043,0.66,126.01,125.98,4.60239687]
[1767163536167,0.66,126.01,125.97,8.59808767]
[1767163536369,0.66,126.01,125.98,3.90239687]
[1767163536555,0.66,125.99,125.95,26.34159026]
[1767163536755,0.66,125.99,125.96,4.56239687]
[1767163536946,0.66,125.99,125.96,0.66]
[1767163537144,0.66,125.99,125.96,8.59897758]
[1767163538068,0.66,125.99,125.96,12.50137445]
[1767163544675,0.66,125.99,125.97,3.90239687]
[1767163549176,0.66,125.99,125.96,12.50137445]
[1767163552679,0.66,125.99,125.96,8.59897758]
[1767163552878,0.66,125.99,125.96,12.50137445]
[1767163554279,0.66,125.99,125.96,4.56239687]
[1767163554574,11.83836168,126.01,125.98,3.90239687]
[1767163554781,0.71,126.0,125.98,3.90239687]
[1767163558384,0.71,126.0,125.97,0.68]
[1767163558577,0.71,126.0,125.98,3.90239687]
[1767163562386,0.71,126.0,125.97,4.58239687]
[1767163564990,0.66,126.03,125.99,4.56239687]
[1767163566288,0.66,126.02,125.99,4.56239687]
[1767163566588,0.66,126.02,126.0,3.90239687]
[1767163567288,0.66,126.02,125.99,0.66]
[1767163567470,0.66,126.02,125.99,4.56239687]
[1767163576204,4.56239687,126.03,125.99,4.56239687]
[1767163576370,0.66,126.02,125.99,4.56239687]
[1767163578191,0.66,126.02,125.96,34.34710307]
[1767163578192,4.56239687,126.02,125.97,0.7]
[1767163578395,0.66,126.01,125.98,3.90239687]
[1767163578575,0.66,126.01,125.98,3.19759506]
[1767163579574,7.93480037,126.03,125.99,3.19759506]
[1767163579896,0.66,126.02,125.99,3.19759506]
[1767163583099,0.66,126.03,125.99,3.19759506]
[1767163583485,0.66,126.02,125.99,3.19759506]
[1767163609142,7.40267507,126.04,126.01,3.15759506]
[1767163609338,0.81,126.06,126.03,3.15759506]
[1767163609644,5.95971284,126.05,126.03,3.15759506]
[1767163609934,0.71,126.05,126.03,3.15759506]
[1767163613420,0.71,126.05,126.03,0.66]
[1767163614052,0.71,126.05,126.02,3.15759506]
[1767163622150,0.1,126.06,126.05,0.67]
[1767163622342,0.1,126.08,126.06,0.67]
[1767163622536,0.1,126.08,126.07,2.49759506]
[1767163622850,0.1,126.08,126.07,3.16759506]
[1767163624037,0.67,126.09,126.07,3.16759506]
[1767163624639,0.77,126.1,126.07,3.16759506]
[1767163625444,0.77,126.1,126.07,0.67]
[1767163625768,0.77,126.1,126.07,3.16759506]
[1767163627149,8.03024252,126.1,126.07,0.67]
[1767163627353,0.67,126.09,126.07,3.16759506]
[1767163635065,0.77,126.1,126.07,3.16759506]
[1767163635969,0.77,126.1,126.08,2.49759506]
[1767163636155,0.77,126.1,126.08,3.16759506]
[1767163636658,0.77,126.1,126.08,2.49759506]
[1767163638862,0.77,126.1,126.07,2.49759506]
[1767163639360,0.77,126.1,126.07,3.20759506]
[1767163640163,0.77,126.1,126.07,2.49759506]
[1767163640462,0.77,126.1,126.07,3.89684985]
[1767163640642,0.77,126.1,126.07,4.60684985]
[1767163640846,0.77,126.1,126.08,3.89684985]
[1767163643958,0.1,126.1,126.09,0.71]
[1767163644269,0.1,126.1,126.08,4.60684985]
[1767163646757,0.1,126.11,126.09,4.60684985]
[1767163647158,0.1,126.11,126.1,3.89684985]
[1767163647461,0.1,126.11,126.09,4.60684985]
[1767163649158,0.1,126.11,126.09,0.71]
[1767163649356,0.1,126.15,126.11,0.65]
[1767163649563,15.07703384,126.16,126.11,0.65]
[1767163649773,15.07703384,126.16,126.15,3.89684985]
[1767163649968,7.15037483,126.16,126.15,3.89684985]
[1767163650274,7.15037483,126.16,126.14,3.89684985]
[1767163651175,6.46037483,126.16,126.13,0.65]
[1767163651376,0.69,126.15,126.13,3.89684985]
[1767163651982,0.69,126.15,126.13,4.54684985]
[1767163652393,0.69,126.15,126.14,3.89684985]
[1767163652686,0.69,126.15,126.13,4.54684985]
[1767163653568,0.69,126.14,126.11,4.54684985]
[1767163653779,0.69,126.14,126.11,0.65]
[1767163654771,7.92784864,126.14,126.1,3.89684985]
[1767163654974,4.58684985,126.11,126.08,0.65]
[1767163655177,0.69,126.11,126.08,0.65]
[1767163655881,0.69,126.11,126.08,4.54684985]
[1767163656055,0.69,126.13,126.09,0.65]
[1767163656260,0.69,126.13,126.09,4.54684985]
[1767163656862,0.69,126.12,126.09,4.54684985]
[1767163657180,0.69,126.12,126.09,3.89684985]
[1767163657487,0.69,126.12,126.08,4.54684985]
[1767163658968,8.61900099,126.12,126.08,4.54684985]
[1767163659164,8.61900099,126.12,126.08,0.65]
[1767163659580,8.61900099,126.12,126.08,4.54684985]
[1767163659781,8.61900099,126.12,126.09,0.65]
[1767163668089,0.71,126.11,126.09,0.65]
[1767163669791,0.71,126.11,126.08,0.65]
[1767163669977,4.60684985,126.11,126.08,0.65]
[1767163670377,0.71,126.11,126.08,0.65]
[1767163672503,0.71,126.11,126.08,0.6]
[1767163680216,0.71,126.1,126.06,0.6]
[1767163680595,0.71,126.09,126.06,0.6]
[1767163681821,4.59684985,126.1,126.06,4.49684985]
[1767163682027,4.59684985,126.1,126.07,0.6]
[1767163682329,0.7,126.1,126.07,0.6]
[1767163683731,0.7,126.1,126.07,4.49684985]
[1767163684033,0.7,126.1,126.07,0.6]
[1767163688517,7.92832791,126.13,126.07,3.89684985]
[1767163688723,0.7,126.12,126.09,0.6]
[1767163689798,0.7,126.12,126.08,4.49684985]
[1767163691820,0.7,126.11,126.08,4.49684985]
[1767163692509,0.7,126.11,126.08,0.6]
[1767163696210,0.7,126.11,126.08,4.49684985]
[1767163696926,0.7,126.11,126.08,0.6]
[1767163697436,4.59684985,126.11,126.08,0.6]
[1767163700534,3.19393194,126.11,126.08,0.6]
[1767163701712,0.7,126.11,126.08,0.6]
[1767163702727,0.7,126.1,126.07,3.09393194]
[1767163718450,0.7,126.1,126.08,2.49393194]
[1767163718647,0.7,126.12,126.09,3.09393194]
[1767163718845,0.7,126.12,126.09,2.49393194]
[1767163719037,0.7,126.12,126.08,3.09393194]
[1767163719654,0.7,126.12,126.09,0.6]
[1767163720152,0.7,126.12,126.08,2.49393194]
[1767163720355,0.7,126.12,126.08,3.09393194]
[1767163724454,3.19393194,126.12,126.08,3.09393194]
[1767163724649,0.7,126.11,126.08,3.09393194]
[1767163725059,2.49393194,126.11,126.06,3.09393194]
[1767163725247,0.7,126.1,126.06,3.09393194]
[1767163725448,0.7,126.1,126.07,0.6]
[1767163737180,0.7,126.1,126.07,3.09393194]
[1767163741359,0.7,126.1,126.06,11.02660294]
[1767163762496,0.7,126.1,126.06,12.42973137]
[1767163764381,0.7,126.1,126.06,0.6]
[1767163764382,3.89706037,126.1,126.06,0.6]
[1767163764590,0.72,126.09,126.06,0.6]
[1767163766291,0.72,126.09,126.06,4.49706037]
[1767163768434,0.72,126.09,126.06,12.4294377]
[1767163772308,0.72,126.09,126.06,8.53237733]
[1767163772810,0.72,126.09,126.06,12.4294377]
[1767163773011,0.72,126.09,126.06,8.53237733]
[1767163775016,0.69102944,126.09,126.06,8.53237733]
[1767163778604,0.69102944,126.09,126.06,0.6]
[1767163778805,0.72,126.08,126.04,15.11]
[1767163779110,4.61706037,126.08,126.04,15.11]
[1767163779307,4.61706037,126.08,126.04,14.48]
[1767163779488,4.61706037,126.08,126.05,0.63]
[1767163780898,0.72,126.07,126.05,0.63]
[1767163781488,0.72,126.07,126.04,14.48]
[1767163782107,0.72,126.07,126.04,15.11]
[1767163782316,0.72,126.06,126.03,0.63]
[1767163783304,0.72,126.06,126.03,8.56457786]
[1767163783606,0.72,126.06,126.02,22.41496521]
[1767163783798,0.72,126.05,126.02,14.48]
[1767163785410,0.72,126.05,126.02,22.41519964]
[1767163785707,0.72,126.05,126.01,12.46263457]
[1767163786092,0.72,126.04,126.01,0.63]
[1767163786298,0.72,126.04,126.0,26.96348566]
[1767163787102,0.7,126.03,126.0,0.63]
[1767163795319,0.7,126.03,126.0,4.52706037]
[1767163796323,0.7,126.04,126.01,4.52706037]
[1767163796529,0.7,126.04,126.01,0.63]
[1767163796998,0.7,126.06,126.03,4.52706037]
[1767163798724,0.7,126.06,126.03,0.63]
[1767163799922,0.7,126.06,126.03,4.52706037]
[1767163800124,0.7,126.06,126.03,0.63]
[1767163800421,3.89706037,126.06,126.03,0.63]
[1767163800618,0.7,126.05,126.03,0.63]
[1767163801719,0.7,126.05,126.02,15.13]
[1767163803727,0.7,126.05,126.02,19.02706037]
[1767163804410,0.7,126.05,126.02,15.13]
[1767163813347,0.7,126.05,126.02,19.02706037]
[1767163815626,0.7,126.05,126.02,18.16306147]
[1767163818021,0.7,126.05,126.02,15.13]
[1767163822335,0.7,126.05,126.02,14.5]
[1767163824449,1.47259873,126.06,126.02,15.13]
[1767163824631,2.03382475,126.05,126.02,15.13]
[1767163825644,2.03382475,126.05,126.02,0.63]
[1767163826633,2.68382475,126.05,126.02,0.63]
[1767163828323,0.65,126.05,126.02,0.63]
[1767163835555,2.68382475,126.05,126.02,0.63]
[1767163848457,0.68,126.03,126.0,23.12620955]
[1767163848648,0.65055697,126.03,126.0,22.43620955]
[1767163848852,0.65055697,126.03,126.01,8.62582882]
[1767163849562,2.68438172,126.03,126.01,0.69]
[1767163849866,0.65055697,126.03,126.01,0.69]